fUSD/lending_fUSD_20240114
["ID","MTS","AMOUNT","RATE_DAILY","PERIOD"]
[311584872,1705254667202,-621.16,0.00030684,2]
[311584873,1705254667212,-500.0,0.00030684,2]
[311584874,1705254667221,-500.0,0.00030684,2]
[311584875,1705254667231,-677.45,0.00030684,2]
[311584876,1705254667240,-500.0,0.00030684,2]
[311584877,1705254667250,-519.26,0.00030684,2]
[311584878,1705254667260,-500.0,0.00030684,2]
[311584879,1705254667270,-500.0,0.00030684,2]
[311584880,1705254667281,-500.0,0.00030684,2]
[311584881,1705254667291,-903.38,0.00030684,2]
[311584882,1705254667300,-500.0,0.00030684,2]
[311584883,1705254667310,-1028.98,0.00030684,2]
[311584884,1705254667320,-500.0,0.00030684,2]
[311584885,1705254667337,-500.0,0.00030684,2]
[311584886,1705254667346,-792.6,0.00030684,2]
[311584887,1705254667360,-500.0,0.00030684,2]
[311584888,1705254667370,-500.0,0.00030684,2]
[311584889,1705254667380,-623.35985259,0.00030684,2]
[311584890,1705254667391,-500.0,0.00030684,2]
[311584891,1705254667400,-629.21,0.00030684,2]
[311584892,1705254667411,-500.0,0.00030684,2]
[311584893,1705254667420,-500.0,0.00030684,2]
[311584894,1705254667430,-500.0,0.00030684,2]
[311584895,1705254667439,-500.0,0.00030684,2]
[311584896,1705254667449,-507.23633514,0.00030684,2]
[311584897,1705254667458,-500.0,0.00030684,2]
[311584898,1705254667468,-500.0,0.00030684,2]
[311584899,1705254667478,-500.0,0.00030684,2]
[311584900,1705254667487,-769.34,0.00030684,2]
[311584901,1705254667852,-500.0,0.00030684,2]
[311584902,1705254667862,-500.0,0.00030684,2]
[311584903,1705254667872,-716.68,0.00030684,2]
[311584904,1705254667881,-511.9349903,0.00030684,2]
[311584905,1705254667891,-883.7,0.00030684,2]
[311584906,1705254667900,-500.0,0.00030684,2]
[311584907,1705254667910,-500.0,0.00030684,2]
[311584908,1705254667920,-854.99,0.00030684,2]
[311584909,1705254667929,-1889.13,0.00030684,2]
[311584910,1705254667939,-286.26460497,0.00030684,2]
[311584911,1705254667948,-500.0,0.00030684,2]
[311584912,1705254667958,-511.20076425,0.00030684,2]
[311584913,1705254667969,-500.0,0.00030684,2]
[311584914,1705254667978,-500.0,0.00030684,2]
[311584915,1705254667988,-500.0,0.00030684,2]
[311584916,1705254667998,-500.0,0.00030684,2]
[311584917,1705254668008,-500.0,0.00030684,2]
[311584918,1705254668017,-500.0,0.00030684,2]
[311584919,1705254668027,-1000.0,0.00030684,2]
[311584920,1705254668038,-500.0,0.00030684,2]
[311584921,1705254668050,-598.47,0.00030684,2]
[311584922,1705254668061,-500.0,0.00030684,2]
[311584923,1705254668071,-500.0,0.00030684,2]
[311584924,1705254668082,-684.19,0.00030684,2]
[311584925,1705254668092,-500.0,0.00030684,2]
[311584926,1705254668102,-1015.86,0.00030684,2]
[311584927,1705254668114,-1532.26,0.00030684,2]
[311584928,1705254668126,-543.96,0.00030684,2]
[311584929,1705254668139,-503.80109686,0.00030684,2]
[311584930,1705254668150,-500.0,0.00030684,2]
[311584931,1705254668161,-873.09,0.00030684,2]
[311584932,1705254668172,-728.21,0.00030684,2]
[311584933,1705254668183,-500.0,0.00030684,2]
[311584934,1705254668193,-544.01,0.00030684,2]
[311584935,1705254668204,-500.0,0.00030684,2]
[311584936,1705254668214,-847.21,0.00030684,2]
[311584937,1705254668225,-632.51,0.00030684,2]
[311584938,1705254668236,-537.89,0.00030684,2]
[311584939,1705254668247,-500.0,0.00030684,2]
[311584940,1705254668257,-500.0,0.00030684,2]
[311584941,1705254668267,-300.0,0.00030684,2]
[311584942,1705254668277,-500.0,0.00030684,2]
[311584943,1705254668287,-500.0,0.00030684,2]
[311584944,1705254668298,-811.66,0.00030684,2]
[311584945,1705254668307,-500.0,0.00030684,2]
[311584946,1705254668317,-500.0,0.00030684,2]
[311584947,1705254668328,-500.0,0.00030684,2]
[311584948,1705254668338,-577.79,0.00030684,2]
[311584949,1705254668347,-1041.79,0.00030684,2]
[311584950,1705254668358,-569.19,0.00030684,2]
[311584951,1705254668367,-500.0,0.00030684,2]
[311584952,1705254668377,-500.0,0.00030684,2]
[311584953,1705254668387,-799.01,0.00030684,2]
[311584954,1705254668398,-500.0,0.00030684,2]
[311584955,1705254668408,-1000.0,0.00030684,2]
[311584956,1705254668418,-500.0,0.00030684,2]
[311584957,1705254668428,-500.0,0.00030684,2]
[311584958,1705254668438,-1129.85,0.00030684,2]
[311584959,1705254668450,-500.0,0.00030684,2]
[311584960,1705254668461,-436.35347209,0.00030684,2]
[311584961,1705254668471,-623.05,0.00030684,2]
[311584962,1705254668482,-500.0,0.00030684,2]
[311584963,1705254668492,-500.0,0.00030684,2]
[311584964,1705254668503,-500.0,0.00030684,2]
[311584965,1705254668514,-500.0,0.00030684,2]
[311584966,1705254668524,-500.0,0.00030684,2]
[311584967,1705254668534,-500.0,0.00030684,2]
[311584968,1705254668544,-500.0,0.00030684,2]
[311584969,1705254668553,-1412.28,0.00030684,2]
[311584970,1705254668563,-500.0,0.00030684,2]
[311584971,1705254668572,-500.0,0.00030684,2]
[311584972,1705254668581,-227.58577947,0.00030684,2]
[311584973,1705254668590,-500.0,0.00030684,2]
[311584974,1705254668600,-500.0,0.00030684,2]
[311584975,1705254668609,-500.0,0.00030684,2]
[311584976,1705254668620,-500.0,0.00030684,2]
[311584977,1705254668629,-500.0,0.00030684,2]
[311584978,1705254668638,-500.0,0.00030684,2]
[311584979,1705254668647,-500.0,0.00030684,2]
[311584980,1705254668657,-504.89528994,0.00030684,2]
[311584981,1705254668667,-500.0,0.00030684,2]
[311584982,1705254668676,-805.08,0.00030684,2]
[311584983,1705254668685,-585.49,0.00030684,2]
[311584984,1705254668695,-500.0,0.00030684,2]
[311584985,1705254668704,-506.38140389,0.00030684,2]
[311584986,1705254668713,-500.0,0.00030684,2]
[311584987,1705254668722,-500.0,0.00030684,2]
[311584988,1705254668731,-296.61737075,0.00030684,2]
[311584989,1705254668740,-500.0,0.00030684,2]
[311584990,1705254668750,-528.91,0.00030684,2]
[311584991,1705254668759,-623.21,0.00030684,2]
[311584992,1705254668768,-620.94,0.00030684,2]
[311584993,1705254668778,-1190.47,0.00030684,2]
[311584994,1705254668789,-500.0,0.00030684,2]
[311584995,1705254668798,-500.0,0.00030684,2]
[311584996,1705254668807,-500.0,0.00030684,2]
[311584997,1705254668816,-1096.0,0.00030684,2]
[311584998,1705254668826,-421.72929369,0.00030684,2]
[311584999,1705254668836,-500.0,0.00030684,2]
[311585000,1705254668845,-500.0,0.00030684,2]
[311585001,1705254668855,-572.26,0.00030684,2]
[311585002,1705254668866,-609.54,0.00030684,2]
[311585003,1705254668876,-500.0,0.00030684,2]
[311585004,1705254668885,-1186.28,0.00030684,2]
[311585005,1705254668894,-428.55075501,0.00030684,2]
[311585006,1705254668903,-541.44069531,0.00030684,2]
[311585007,1705254668912,-669.88,0.00030684,2]
[311585008,1705254668922,-1818.34,0.00030684,2]
[311585009,1705254668931,-234.10944026,0.00030684,2]
[311585010,1705254668939,-500.0,0.00030684,2]
[311585011,1705254668949,-685.95,0.00030684,2]
[311585012,1705254668959,-501.47,0.00030684,2]
[311585013,1705254668969,-518.54,0.00030684,2]
[311585014,1705254668979,-593.21,0.00030684,2]
[311585015,1705254668989,-529.69,0.00030684,2]
[311585016,1705254668999,-500.0,0.00030684,2]
[311585017,1705254669008,-500.0,0.00030684,2]
[311585018,1705254669017,-1016.0,0.00030684,2]
[311585019,1705254669027,-500.0,0.00030684,2]
[311585020,1705254669038,-500.0,0.00030684,2]
[311585021,1705254669048,-1621.92,0.00030684,2]
[311585022,1705254669058,-722.69,0.00030684,2]
[311585023,1705254669071,-903.91,0.00030684,2]
[311585024,1705254669081,-500.0,0.00030684,2]
[311585025,1705254669090,-337.34368318,0.00030684,2]
[311585026,1705254669099,-500.0,0.00030684,2]
[311585027,1705254669108,-991.32,0.00030684,2]
[311585028,1705254669117,-500.0,0.00030684,2]
[311585029,1705254669127,-500.0,0.00030684,2]
[311585030,1705254669137,-525.84,0.00030684,2]
[311585031,1705254669146,-500.0,0.00030684,2]
[311585032,1705254669155,-500.0,0.00030684,2]
[311585033,1705254669165,-500.0,0.00030684,2]
[311585034,1705254669175,-710.74,0.00030684,2]
[311585035,1705254669184,-500.0,0.00030684,2]
[311585036,1705254669193,-704.61,0.00030684,2]
[311585037,1705254669202,-500.0,0.00030684,2]
[311585038,1705254669211,-709.82,0.00030684,2]
[311585039,1705254669221,-500.0,0.00030684,2]
[311585040,1705254669230,-500.0,0.00030684,2]
[311585041,1705254669239,-500.0,0.00030684,2]
[311585042,1705254669248,-1223.32,0.00030684,2]
[311585043,1705254669257,-710.54,0.00030684,2]
[311585044,1705254669266,-1094.22,0.00030684,2]
[311585045,1705254669274,-182.9064655,0.00030684,2]
[311585046,1705254669282,-500.0,0.00030684,2]
[311585047,1705254669291,-793.79,0.00030684,2]
[311585048,1705254669299,-500.0,0.00030684,2]
[311585049,1705254669309,-544.47454863,0.00030684,2]
[311585050,1705254669318,-500.0,0.00030684,2]
[311585051,1705254669327,-589.24,0.00030684,2]
[311585052,1705254669336,-500.0,0.00030684,2]
[311585053,1705254669346,-1158.19,0.00030684,2]
[311585054,1705254669355,-1336.34,0.00030684,2]
[311585055,1705254669366,-705.78,0.00030684,2]
[311585056,1705254669376,-500.0,0.00030684,2]
[311585057,1705254669385,-1278.82,0.00030684,2]
[311585058,1705254669395,-872.06,0.00030684,2]
[311585059,1705254669404,-693.44,0.00030684,2]
[311585060,1705254669413,-614.72,0.00030684,2]
[311585061,1705254669423,-500.0,0.00030684,2]
[311585062,1705254669432,-1275.99,0.00030684,2]
[311585063,1705254669442,-630.84,0.00030684,2]
[311585064,1705254669451,-658.22,0.00030684,2]
[311585065,1705254669461,-530.81,0.00030684,2]
[311585066,1705254669470,-560.34,0.00030684,2]
[311585067,1705254669480,-500.0,0.00030684,2]
[311585068,1705254669489,-500.0,0.00030684,2]
[311585069,1705254669499,-510.82,0.00030684,2]
[311585070,1705254669508,-981.13,0.00030684,2]
[311585071,1705254669518,-500.0,0.00030684,2]
[311585072,1705254669528,-772.78,0.00030684,2]
[311585073,1705254669537,-500.0,0.00030684,2]
[311585074,1705254669547,-500.0,0.00030684,2]
[311585075,1705254669556,-500.0,0.00030684,2]
[311585076,1705254669566,-500.0,0.00030684,2]
[311585077,1705254669576,-500.0,0.00030684,2]
[311585078,1705254669585,-500.0,0.00030684,2]
[311585079,1705254669594,-848.01,0.00030684,2]
[311585080,1705254669603,-1459.83,0.00030684,2]
[311585081,1705254669615,-623.93,0.00030684,2]
[311585082,1705254669624,-500.0,0.00030684,2]
[311585083,1705254669633,-701.62,0.00030684,2]
[311585084,1705254669642,-945.09,0.00030684,2]
[311585085,1705254669652,-500.0,0.00030684,2]
[311585086,1705254669661,-500.0,0.00030684,2]
[311585087,1705254669670,-500.0,0.00030684,2]
[311585088,1705254669679,-500.0,0.00030684,2]
[311585089,1705254669689,-500.0,0.00030684,2]
[311585090,1705254669698,-1076.56,0.00030684,2]
[311585091,1705254669707,-1062.5,0.00030684,2]
[311585092,1705254669716,-500.0,0.00030684,2]
[311585093,1705254669725,-1257.99,0.00030684,2]
[311585094,1705254669734,-584.19571979,0.00030684,2]
[311585095,1705254669744,-500.0,0.00030684,2]
[311585096,1705254669753,-500.0,0.00030684,2]
[311585097,1705254669762,-500.0,0.00030684,2]
[311585098,1705254669771,-505.85,0.00030684,2]
[311585099,1705254669781,-500.0,0.00030684,2]
[311585100,1705254669790,-911.18,0.00030684,2]
[311585101,1705254669799,-500.0,0.00030684,2]
[311585102,1705254669809,-500.0,0.00030684,2]
[311585103,1705254669818,-500.0,0.00030684,2]
[311585104,1705254669828,-1141.48,0.00030684,2]
[311585105,1705254669837,-578.73,0.00030684,2]
[311585106,1705254669846,-876.48,0.00030684,2]
[311585107,1705254669856,-500.0,0.00030684,2]
[311585108,1705254669866,-1408.36,0.00030684,2]
[311585109,1705254669876,-500.0,0.00030684,2]
[311585110,1705254669885,-500.0,0.00030684,2]
[311585111,1705254669895,-500.0,0.00030684,2]
[311585112,1705254669904,-652.92,0.00030684,2]
[311585113,1705254669913,-500.0,0.00030684,2]
[311585114,1705254669923,-700.49,0.00030684,2]
[311585115,1705254669932,-535.93,0.00030684,2]
[311585116,1705254669942,-1369.55,0.00030684,2]
[311585117,1705254669952,-500.0,0.00030684,2]
[311585118,1705254669961,-655.51,0.00030684,2]
[311585119,1705254669971,-519.17865862,0.00030684,2]
[311585120,1705254669980,-1152.05,0.00030684,2]
[311585121,1705254669989,-1693.97,0.00030684,2]
[311585122,1705254669999,-500.0,0.00030684,2]
[311585123,1705254670009,-576.41,0.00030684,2]
[311585124,1705254670018,-500.0,0.00030684,2]
[311585125,1705254670028,-500.0,0.00030684,2]
[311585126,1705254670039,-500.0,0.00030684,2]
[311585127,1705254670048,-674.01,0.00030684,2]
[311585128,1705254670058,-666.56,0.00030684,2]
[311585129,1705254670070,-500.0,0.00030684,2]
[311585130,1705254670080,-1489.68,0.00030684,2]
[311585131,1705254670090,-500.0,0.00030684,2]
[311585132,1705254670099,-1084.26,0.00030684,2]
[311585133,1705254670109,-500.0,0.00030684,2]
[311585134,1705254670120,-500.0,0.00030684,2]
[311585135,1705254670131,-500.0,0.00030684,2]
[311585136,1705254670139,-500.0,0.00030684,2]
[311585137,1705254670152,-507.6,0.00030684,2]
[311585138,1705254670162,-500.0,0.00030684,2]
[311585139,1705254670171,-672.02,0.00030684,2]
[311585140,1705254670186,-500.0,0.00030684,2]
[311585141,1705254670195,-500.0,0.00030684,2]
[311585142,1705254670318,-500.0,0.00030684,2]
[311585143,1705254670328,-500.0,0.00030684,2]
[311585144,1705254670337,-500.0,0.00030684,2]
[311585145,1705254670361,-500.0,0.00030684,2]
[311585146,1705254670372,-500.0,0.00030684,2]
[311585147,1705254670381,-1102.17,0.00030684,2]
[311585148,1705254670391,-1616.4,0.00030684,2]
[311585149,1705254670400,-816.43,0.00030684,2]
[311585150,1705254670409,-500.0,0.00030684,2]
[311585151,1705254670422,-500.0,0.00030684,2]
[311585152,1705254670432,-500.0,0.00030684,2]
[311585153,1705254670441,-500.0,0.00030684,2]
[311585154,1705254670450,-719.58,0.00030684,2]
[311585155,1705254670459,-807.28,0.00030684,2]
[311585156,1705254670469,-500.0,0.00030684,2]
[311585157,1705254670478,-500.0,0.00030684,2]
[311585158,1705254670488,-815.19,0.00030684,2]
[311585159,1705254670497,-716.18,0.00030684,2]
[311585160,1705254670506,-683.69,0.00030684,2]
[311585161,1705254670516,-675.06,0.00030684,2]
[311585162,1705254670525,-500.0,0.00030684,2]
[311585163,1705254670535,-500.0,0.00030684,2]
[311585164,1705254670544,-623.19,0.00030684,2]
[311585165,1705254670554,-500.0,0.00030684,2]
[311585166,1705254670563,-500.0,0.00030684,2]
[311585167,1705254670573,-1243.95,0.00030684,2]
[311585168,1705254670583,-1006.49,0.00030684,2]
[311585169,1705254670592,-1113.17,0.00030684,2]
[311585170,1705254670601,-500.0,0.00030684,2]
[311585171,1705254670613,-500.0,0.00030684,2]
[311585172,1705254670623,-510.34,0.00030684,2]
[311585173,1705254670632,-500.0,0.00030684,2]
[311585174,1705254670641,-674.12,0.00030684,2]
[311585175,1705254670653,-500.0,0.00030684,2]
[311585176,1705254670673,-596.91,0.00030684,2]
[311585177,1705254670689,-941.41,0.00030684,2]
[311585178,1705254670710,-1779.19,0.00030684,2]
[311585179,1705254670719,-500.0,0.00030684,2]
[311585180,1705254670751,-536.5,0.00030684,2]
[311585181,1705254670760,-500.0,0.00030684,2]
[311585182,1705254670770,-1166.57,0.00030684,2]
[311585183,1705254670803,-500.0,0.00030684,2]
[311585184,1705254670817,-500.0,0.00030684,2]
[311585185,1705254670831,-500.0,0.00030684,2]
[311585186,1705254670841,-886.77,0.00030684,2]
[311585187,1705254670851,-500.0,0.00030684,2]
[311585188,1705254670861,-500.0,0.00030684,2]
[311585189,1705254670872,-1076.44,0.00030684,2]
[311585190,1705254670882,-806.69,0.00030684,2]
[311585191,1705254670892,-644.5,0.00030684,2]
[311585192,1705254670902,-500.0,0.00030684,2]
[311585193,1705254670926,-1000.0,0.00030684,2]
[311585194,1705254670935,-500.0,0.00030684,2]
[311585195,1705254670967,-846.39,0.00030684,2]
[311585196,1705254670983,-500.0,0.00030684,2]
[311585197,1705254670997,-500.0,0.00030684,2]
[311585198,1705254671008,-654.91,0.00030684,2]
[311585199,1705254671019,-500.0,0.00030684,2]
[311585200,1705254671030,-500.0,0.00030684,2]
[311585201,1705254671044,-631.36,0.00030684,2]
[311585202,1705254671056,-505.5,0.00030684,2]
[311585203,1705254671066,-1250.68,0.00030684,2]
[311585204,1705254671079,-1405.3,0.00030684,2]
[311585205,1705254671090,-500.0,0.00030684,2]
[311585206,1705254671099,-614.66,0.00030684,2]
[311585207,1705254671109,-500.0,0.00030684,2]
[311585208,1705254671137,-500.0,0.00030684,2]
[311585209,1705254671150,-500.0,0.00030684,2]
[311585210,1705254671162,-500.0,0.00030684,2]
[311585211,1705254671173,-500.0,0.00030684,2]
[311585212,1705254671183,-500.38,0.00030684,2]
[311585213,1705254671197,-500.0,0.00030684,2]
[311585214,1705254671207,-500.0,0.00030684,2]
[311585215,1705254671217,-500.0,0.00030684,2]
[311585216,1705254671226,-736.6,0.00030684,2]
[311585217,1705254671240,-500.0,0.00030684,2]
[311585218,1705254671250,-500.0,0.00030684,2]
[311585219,1705254671280,-698.58,0.00030684,2]
[311585220,1705254671290,-1600.55,0.00030684,2]
[311585221,1705254671301,-500.0,0.00030684,2]
[311585222,1705254671310,-500.0,0.00030684,2]
[311585223,1705254671319,-500.0,0.00030684,2]
[311585224,1705254671329,-1355.09,0.00030684,2]
[311585225,1705254671339,-500.0,0.00030684,2]
[311585226,1705254671348,-783.01,0.00030684,2]
[311585227,1705254671358,-500.0,0.00030684,2]
[311585228,1705254671370,-165.63922452,0.00030684,2]
[311585229,1705254671379,-694.09,0.00030684,2]
[311585230,1705254671388,-500.0,0.00030684,2]
[311585231,1705254671397,-500.0,0.00030684,2]
[311585232,1705254671405,-698.64,0.00030684,2]
[311585233,1705254671414,-500.0,0.00030684,2]
[311585234,1705254671423,-500.0,0.00030684,2]
[311585235,1705254671432,-500.0,0.00030684,2]
[311585236,1705254671441,-500.0,0.00030684,2]
[311585237,1705254671450,-500.0,0.00030684,2]
[311585238,1705254671458,-893.97,0.00030684,2]
[311585239,1705254671467,-500.0,0.00030684,2]
[311585240,1705254671477,-802.7,0.00030684,2]
[311585241,1705254671485,-500.0,0.00030684,2]
[311585242,1705254671495,-877.73,0.00030684,2]
[311585243,1705254671504,-500.0,0.00030684,2]
[311585244,1705254671514,-500.0,0.00030684,2]
[311585245,1705254671522,-562.74,0.00030684,2]
[311585246,1705254671531,-643.5,0.00030684,2]
[311585247,1705254671541,-843.19,0.00030684,2]
[311585248,1705254671550,-500.0,0.00030684,2]
[311585249,1705254671559,-959.0,0.00030684,2]
[311585250,1705254671568,-500.0,0.00030684,2]
[311585251,1705254671578,-942.69,0.00030684,2]
[311585252,1705254671587,-688.19,0.00030684,2]
[311585253,1705254671596,-500.0,0.00030684,2]
[311585254,1705254671606,-599.8,0.00030684,2]
[311585255,1705254671617,-683.36,0.00030684,2]
[311585256,1705254671627,-1340.22,0.00030684,2]
[311585257,1705254671636,-500.0,0.00030684,2]
[311585258,1705254671646,-1310.4,0.00030684,2]
[311585259,1705254671656,-2865.82,0.00030684,2]
[311585260,1705254671666,-500.0,0.00030684,2]
[311585261,1705254671675,-500.0,0.00030684,2]
[311585262,1705254671685,-500.0,0.00030684,2]
[311585263,1705254671694,-500.0,0.00030684,2]
[311585264,1705254671703,-685.16,0.00030684,2]
[311585265,1705254671713,-500.0,0.00030684,2]
[311585266,1705254671722,-500.0,0.00030684,2]
[311585267,1705254671731,-540.62,0.00030684,2]
[311585268,1705254671740,-526.27,0.00030684,2]
[311585269,1705254671750,-500.0,0.00030684,2]
[311585270,1705254671759,-2183.89,0.00030684,2]
[311585271,1705254671768,-2162.44,0.00030684,2]
[311585272,1705254671777,-500.0,0.00030684,2]
[311585273,1705254671787,-555.95,0.00030684,2]
[311585274,1705254671797,-500.0,0.00030684,2]
[311585275,1705254671806,-500.0,0.00030684,2]
[311585276,1705254671816,-500.0,0.00030684,2]
[311585277,1705254671826,-860.3,0.00030684,2]
[311585278,1705254671836,-500.0,0.00030684,2]
[311585279,1705254671845,-500.0,0.00030684,2]
[311585280,1705254671855,-500.0,0.00030684,2]
[311585281,1705254671865,-500.0,0.00030684,2]
[311585282,1705254671875,-500.0,0.00030684,2]
[311585283,1705254671885,-500.0,0.00030684,2]
[311585284,1705254671895,-500.0,0.00030684,2]
[311585285,1705254671905,-250.0,0.00030684,2]
[311585286,1705254671914,-507.12575621,0.00030684,2]
[311585287,1705254671924,-333.59765569,0.00030684,2]
[311585288,1705254671933,-500.0,0.00030684,2]
[311585289,1705254671943,-689.79,0.00030684,2]
[311585290,1705254671953,-4135.39,0.00030684,2]
[311585291,1705254671963,-500.0,0.00030684,2]
[311585292,1705254671973,-500.0,0.00030684,2]
[311585293,1705254671983,-502.8343827,0.00030684,2]
[311585294,1705254671993,-500.0,0.00030684,2]
[311585295,1705254672002,-500.0,0.00030684,2]
[311585296,1705254672012,-500.0,0.00030684,2]
[311585297,1705254672021,-571.36,0.00030684,2]
[311585298,1705254672031,-625.54,0.00030684,2]
[311585299,1705254672041,-500.0,0.00030684,2]
[311585300,1705254672050,-500.0,0.00030684,2]
[311585301,1705254672061,-841.27,0.00030684,2]
[311585302,1705254672074,-952.77,0.00030684,2]
[311585303,1705254672083,-500.0,0.00030684,2]
[311585304,1705254672093,-500.0,0.00030684,2]
[311585305,1705254672103,-500.0,0.00030684,2]
[311585306,1705254672114,-500.0,0.00030684,2]
[311585307,1705254672125,-760.3,0.00030684,2]
[311585308,1705254672134,-851.47,0.00030684,2]
[311585309,1705254672145,-500.0,0.00030684,2]
[311585310,1705254672154,-722.99,0.00030684,2]
[311585311,1705254672163,-934.33,0.00030684,2]
[311585312,1705254672173,-2085.35,0.00030684,2]
[311585313,1705254672182,-500.0,0.00030684,2]
[311585314,1705254672191,-528.2,0.00030684,2]
[311585315,1705254672201,-500.0,0.00030684,2]
[311585316,1705254672210,-500.0,0.00030684,2]
[311585317,1705254672219,-500.0,0.00030684,2]
[311585318,1705254672228,-500.0,0.00030684,2]
[311585319,1705254672238,-1072.63,0.00030684,2]
[311585320,1705254672247,-500.0,0.00030684,2]
[311585321,1705254672257,-500.0,0.00030684,2]
[311585322,1705254672267,-500.0,0.00030684,2]
[311585323,1705254672276,-500.0,0.00030684,2]
[311585324,1705254672285,-1143.88,0.00030684,2]
[311585325,1705254672294,-500.0,0.00030684,2]
[311585326,1705254672303,-866.3,0.00030684,2]
[311585327,1705254672313,-687.83,0.00030684,2]
[311585328,1705254672322,-1451.85,0.00030684,2]
[311585329,1705254672332,-500.0,0.00030684,2]
[311585330,1705254672342,-1260.44,0.00030684,2]
[311585331,1705254672351,-601.33,0.00030684,2]
[311585332,1705254672360,-1285.21,0.00030684,2]
[311585333,1705254672369,-686.68,0.00030684,2]
[311585334,1705254672379,-500.0,0.00030684,2]
[311585335,1705254672388,-500.0,0.00030684,2]
[311585336,1705254672397,-837.43,0.00030684,2]
[311585337,1705254672406,-500.0,0.00030684,2]
[311585338,1705254672415,-500.0,0.00030684,2]
[311585339,1705254672424,-3602.0,0.00030684,2]
[311585340,1705254672434,-1091.0,0.00030684,2]
[311585341,1705254672444,-721.53,0.00030684,2]
[311585342,1705254672454,-938.24,0.00030684,2]
[311585343,1705254672464,-500.0,0.00030684,2]
[311585344,1705254672473,-556.27509697,0.00030684,2]
[311585345,1705254672484,-4612.85,0.00030684,2]
[311585346,1705254672493,-1262.49,0.00030684,2]
[311585347,1705254672503,-687.1,0.00030684,2]
[311585348,1705254672512,-500.0,0.00030684,2]
[311585349,1705254672521,-1568.3,0.00030684,2]
[311585350,1705254672530,-1000.0,0.00030684,2]
[311585351,1705254672539,-945.26,0.00030684,2]
[311585352,1705254672548,-500.0,0.00030684,2]
[311585353,1705254672557,-500.0,0.00030684,2]
[311585354,1705254672569,-1939.61,0.00030684,2]
[311585355,1705254672579,-921.19,0.00030684,2]
[311585356,1705254672588,-2489.84,0.00030684,2]
[311585357,1705254672598,-500.0,0.00030684,2]
[311585358,1705254672607,-1872.87,0.00030684,2]
[311585359,1705254672618,-500.0,0.00030684,2]
[311585360,1705254672627,-500.0,0.00030684,2]
[311585361,1705254672636,-588.83,0.00030684,2]
[311585362,1705254672646,-500.0,0.00030684,2]
[311585363,1705254672655,-265.04608104,0.00030684,2]
[311585364,1705254672664,-738.3,0.00030684,2]
[311585365,1705254672674,-882.91,0.00030684,2]
[311585366,1705254672684,-1363.03,0.00030684,2]
[311585367,1705254672693,-540.32,0.00030684,2]
[311585368,1705254672703,-500.0,0.00030684,2]
[311585369,1705254672712,-500.0,0.00030684,2]
[311585370,1705254672722,-1915.63,0.00030684,2]
[311585371,1705254672732,-1446.64,0.00030684,2]